bitfinex-derivatives/quotes_SOLF0:USTF0_20250911
["timestamp","ask_amount","ask_price","bid_price","bid_amount"]
[1757580379461,3.6370156,222.98,222.92,3.7731531]
[1757580379661,68.93771078,223.01,222.93,6.94]
[1757580379861,3.63592949,223.0,222.93,6.94]
[1757580380057,3.63592949,222.99,222.93,6.94]
[1757580380265,3.63592949,222.98,222.92,6.94]
[1757580380465,68.93771078,223.01,222.92,6.94]
[1757580380665,3.63494695,223.0,222.92,6.94]
[1757580380864,3.63494695,222.99,222.92,6.94]
[1757580381068,3.63494695,222.98,222.92,6.94]
[1757580381262,68.93771078,223.01,222.92,6.94]
[1757580381463,3.6342376,223.0,222.92,6.94]
[1757580381664,3.6342376,222.99,222.92,6.94]
[1757580381863,1.65818237,223.0,222.92,6.94]
[1757580382160,3.6342376,222.99,222.92,6.94]
[1757580382468,67.27952841,223.01,222.92,6.94]
[1757580382667,7.3,222.99,222.92,6.94]
[1757580383671,1.65818237,222.98,222.92,6.94]
[1757580385866,0.03240411,222.97,222.93,0.02938723]
[1757580386066,0.03240411,222.97,222.94,6.94]
[1757580386464,0.03240411,222.97,222.93,0.02938723]
[1757580386871,0.03240411,222.97,222.94,6.94]
[1757580387169,0.03240411,222.97,222.94,7.35]
[1757580387669,0.03240411,222.97,222.93,0.02938723]
[1757580389470,0.03240411,222.97,222.94,7.35]
[1757580390068,0.03240411,222.97,222.93,0.02938723]
[1757580390366,0.03240411,222.97,222.94,7.35]
[1757580391270,0.03240411,222.97,222.93,0.02938723]
[1757580391663,0.03240411,222.97,222.94,7.35]
[1757580391868,7.36,223.02,222.94,7.35]
[1757580392067,1.65818237,223.04,222.94,7.35]
[1757580392268,10.98664784,223.03,222.94,7.35]
[1757580392468,7.36,223.03,222.94,7.35]
[1757580393372,7.36,223.03,222.94,22.09]
[1757580393573,1.65818237,223.02,222.94,14.74]
[1757580393769,1.65818237,223.02,222.95,7.35]
[1757580395673,7.36,223.03,222.95,7.35]
[1757580395873,1.65818237,223.01,222.95,7.35]
[1757580397175,7.36,223.03,222.95,7.35]
[1757580397371,1.65818237,223.01,222.95,7.35]
[1757580398876,7.36,223.03,222.95,7.35]
[1757580399077,1.65818237,223.02,222.95,7.35]
[1757580400372,9.01818237,223.03,222.95,7.35]
[1757580402779,7.36,223.03,222.95,7.35]
[1757580402984,1.65818237,222.98,222.95,7.35]
[1757580403180,7.36,222.97,222.95,7.35]
[1757580404770,7.36,223.01,222.94,0.03083684]
[1757580413290,7.36,222.99,222.94,0.03083684]
[1757580413879,7.36,223.01,222.94,0.03083684]
[1757580414083,2.58880476,223.02,222.94,0.03083684]
[1757580414084,7.36,222.99,222.94,0.03083684]
[1757580414989,7.36,222.97,222.94,0.03083684]
[1757580416083,3.62708043,222.96,222.94,0.03083684]
[1757580416289,2.58880476,222.98,222.86,11.1231531]
[1757580416290,7.36,222.94,222.86,11.1231531]
[1757580417292,2.58880476,222.98,222.86,11.1231531]
[1757580417585,7.64,222.96,222.86,11.1231531]
[1757580417790,3.632707,222.95,222.86,11.1231531]
[1757580417985,3.632707,222.94,222.86,11.1231531]
[1757580418182,7.64,222.92,222.86,7.35]
[1757580420685,3.63502722,222.91,222.86,7.35]
[1757580420887,7.64,222.93,222.86,7.35]
[1757580421190,3.63502722,222.92,222.86,7.35]
[1757580421387,7.64,222.9,222.87,0.03024345]
[1757580421590,7.64,222.91,222.87,0.03024345]
[1757580421892,0.02971366,222.92,222.87,0.03024345]
[1757580422088,3.6355032,222.91,222.87,0.03024345]
[1757580422294,7.64,222.91,222.87,0.03024345]
[1757580422483,0.02971366,222.92,222.87,0.03024345]
[1757580422688,7.64,222.9,222.87,0.03024345]
[1757580423092,7.64,222.91,222.87,0.03024345]
[1757580423695,3.63360725,222.9,222.87,0.03024345]
[1757580423890,7.64,222.88,222.87,0.03024345]
[1757580431302,0.02971366,222.92,222.88,7.25]
[1757580433493,0.02971366,222.92,222.87,0.03024345]
[1757580434102,0.02971366,222.92,222.88,7.25]
[1757580434604,0.02971366,222.92,222.87,0.03024345]
[1757580435205,0.02971366,222.92,222.88,7.25]
[1757580435400,0.02971366,222.92,222.87,0.03024345]
[1757580435602,0.02971366,222.92,222.88,7.25]
[1757580436498,0.02971366,222.92,222.87,0.03024345]
[1757580436694,0.02971366,222.92,222.88,7.25]
[1757580437505,0.02971366,222.92,222.87,0.03024345]
[1757580437806,0.02971366,222.92,222.88,7.25]
[1757580438301,0.02971366,222.92,222.87,0.03024345]
[1757580438702,0.02971366,222.92,222.88,7.25]
[1757580439102,0.02971366,222.92,222.87,0.03024345]
[1757580439804,0.02971366,222.92,222.88,7.25]
[1757580440407,0.02971366,222.92,222.87,0.03024345]
[1757580440702,0.02971366,222.92,222.88,7.25]
[1757580441407,0.02971366,222.92,222.87,0.03024345]
[1757580442609,0.02971366,222.92,222.88,7.25]
[1757580443107,0.02971366,222.92,222.87,0.03024345]
[1757580443511,0.02971366,222.92,222.88,7.25]
[1757580443901,0.02971366,222.92,222.87,0.03024345]
[1757580444104,0.02971366,222.92,222.88,7.25]
[1757580444508,0.02971366,222.92,222.87,0.03024345]
[1757580445110,0.02971366,222.92,222.88,7.25]
[1757580445713,0.02971366,222.92,222.87,0.03024345]
[1757580445915,0.02971366,222.92,222.88,7.25]
[1757580446515,0.02971366,222.92,222.87,0.03024345]
[1757580446719,0.02971366,222.92,222.88,7.25]
[1757580447012,0.02971366,222.92,222.87,0.03024345]
[1757580447212,0.02971366,222.92,222.88,7.07]
[1757580448715,0.02971366,222.92,222.87,0.03024345]
[1757580448909,7.21971366,222.92,222.88,7.07]
[1757580449114,7.21971366,222.92,222.87,0.03024345]
[1757580449518,7.21971366,222.92,222.88,7.07]
[1757580449917,7.21971366,222.92,222.87,0.03024345]
[1757580450323,7.21971366,222.92,222.88,7.07]
[1757580450721,7.21971366,222.92,222.87,0.03024345]
[1757580451025,7.19,222.91,222.88,7.07]
[1757580452021,7.19,222.91,222.87,0.03024345]
[1757580453115,7.19,222.91,222.88,7.07]
[1757580453319,7.19,222.91,222.87,0.03024345]
[1757580453520,0.02971366,222.92,222.87,0.03024345]
[1757580453724,7.19,222.91,222.87,0.03024345]
[1757580453923,0.02971366,222.92,222.87,0.03024345]
[1757580454125,7.21971366,222.92,222.87,0.03024345]
[1757580454826,7.21971366,222.92,222.88,7.07]
[1757580455923,0.02971366,222.92,222.88,7.07]
[1757580456525,0.02971366,222.92,222.87,3.79914687]
[1757580456726,0.02971366,222.92,222.88,7.07]
[1757580457529,7.21971366,222.92,222.87,3.79914687]
[1757580457728,7.21971366,222.92,222.88,7.07]
[1757580458029,7.21971366,222.92,222.87,3.79914687]
[1757580458231,7.21971366,222.92,222.89,7.07]
[1757580458534,7.21971366,222.92,222.89,3.76890342]
[1757580458830,7.21971366,222.92,222.9,7.07]
[1757580460633,7.21971366,222.92,222.89,3.76890342]
[1757580460823,0.02971366,222.92,222.89,3.76890342]
[1757580461323,0.02971366,222.92,222.9,7.07]
[1757580461526,0.02971366,222.92,222.9,10.83890342]
[1757580461733,7.19,222.98,222.91,10.83890342]
[1757580461933,3.63281863,222.97,222.92,3.76890342]
[1757580462134,7.19,222.97,222.93,7.07]
[1757580462331,7.19,222.97,222.92,3.76890342]
[1757580462635,7.19,223.0,222.93,10.83890342]
[1757580462932,3.63247635,222.99,222.93,10.83890342]
[1757580463133,3.63247635,222.98,222.95,7.07]
[1757580463335,2.58880476,223.02,222.95,7.07]
[1757580463525,14.37439376,223.01,222.95,7.07]
[1757580463727,7.19,222.99,222.95,7.07]
[1757580463931,3.63138692,222.98,222.95,7.07]
[1757580464132,7.19,222.99,222.95,7.07]
[1757580464329,7.19,222.98,222.95,7.07]
[1757580465133,1.65675769,222.99,222.95,7.07]
[1757580465327,7.19,222.98,222.95,7.07]
[1757580467436,65.59677755,223.06,222.94,7.10042044]
[1757580467639,1.65675769,223.01,222.95,7.07]
[1757580468330,1.65675769,223.01,222.96,7.10054573]
[1757580468331,7.19,223.0,222.96,7.10054573]
[1757580468536,1.65675769,223.01,222.96,7.10054573]
[1757580468736,7.19,223.0,222.96,7.10054573]
[1757580469139,1.65675769,223.01,222.96,7.10054573]
[1757580469640,1.65675769,222.97,222.96,0.03054573]
[1757580469840,8.84675769,222.97,222.96,0.03054573]
[1757580470040,8.84675769,222.97,222.92,52.54890342]
[1757580470242,8.84675769,222.97,222.94,0.03422178]
[1757580470442,8.84675769,222.97,222.94,7.10422178]
[1757580471639,1.65675769,222.97,222.94,0.03422178]
[1757580471840,7.19,222.96,222.94,0.03422178]
[1757580472041,7.19,222.96,222.94,7.10422178]
[1757580474537,7.19,222.96,222.94,0.03422178]
[1757580475146,7.19,222.96,222.94,7.10422178]
[1757580476748,1.65675769,222.97,222.95,7.07]
[1757580480144,13.23670211,223.07,222.94,0.03422178]
[1757580480349,1.65675769,223.01,222.95,7.26]
[1757580480646,1.65675769,223.01,222.95,3.76853309]
[1757580480844,1.65675769,223.01,222.96,7.29051769]
[1757580481043,1.65675769,223.01,222.96,0.03051769]
[1757580481639,1.65675769,223.01,222.97,7.26]
[1757580481949,1.65675769,223.01,222.96,0.03051769]
[1757580482852,1.65675769,223.01,222.97,7.26]
[1757580483743,1.65675769,223.01,222.96,0.03051769]
[1757580484340,1.65675769,223.05,222.98,7.26]
[1757580484952,9.09675769,223.05,222.99,0.03028695]
[1757580485256,1.65675769,223.06,223.0,7.26]
[1757580485750,1.65675769,223.06,223.01,0.03160549]
[1757580485949,7.44,223.05,223.02,7.26]
[1757580487554,1.65675769,223.06,223.01,0.03160549]
[1757580487754,1.65675769,223.07,223.01,7.29160549]
[1757580488254,1.65675769,223.07,223.02,0.03067462]
[1757580488455,7.44,223.06,223.03,7.26]
[1757580489656,1.65675769,223.07,223.03,7.26]
[1757580489855,7.44,223.06,223.03,7.26]
[1757580493161,7.44,223.06,223.02,0.03067462]
[1757580493361,1.65675769,223.07,223.03,7.26]
[1757580494262,1.65675769,223.07,223.02,0.03067462]
[1757580494660,9.09675769,223.07,223.03,7.26]
[1757580494860,9.09675769,223.07,223.02,0.03067462]
[1757580495056,9.09675769,223.07,223.03,7.26]
[1757580495562,7.44,223.07,223.02,0.03067462]
[1757580495761,7.44,223.07,223.03,7.26]
[1757580496157,7.44,223.07,223.02,0.03067462]
[1757580496554,7.44,223.07,223.03,7.26]
[1757580496758,7.44,223.07,223.02,0.03067462]
[1757580496961,7.44,223.07,223.03,7.26]
[1757580497364,7.44,223.07,223.02,0.03067462]
[1757580497864,7.44,223.07,223.03,7.26]
[1757580498264,7.44,223.07,223.02,0.03067462]
[1757580498464,7.44,223.07,223.03,7.26]
[1757580498669,7.44,223.07,223.02,0.03067462]
[1757580498866,7.44,223.07,223.03,7.26]
[1757580499065,7.44,223.07,223.02,0.03067462]
[1757580499267,7.44,223.09,223.03,7.26]
[1757580517584,64.55441637,223.16,223.03,7.26]
[1757580517887,7.24,223.13,223.04,7.43]
[1757580518181,7.24,223.13,223.07,7.45921668]
[1757580520279,1.65675769,223.18,223.07,7.45921668]
[1757580520483,7.24,223.16,223.07,7.45921668]
[1757580520684,7.24,223.16,223.07,7.43]
[1757580520878,7.24,223.2,223.1,7.43]
[1757580521085,7.24,223.2,223.11,7.43]
[1757580521491,7.24,223.2,223.13,7.46099622]
[1757580551815,7.24,223.2,223.15,7.5]
[1757580552016,7.37,223.24,223.15,7.5]
[1757580552714,7.37,223.24,223.17,0.0343443]
[1757580553315,2.58315749,223.23,223.17,0.0343443]
[1757580553614,7.37,223.22,223.17,0.0343443]
[1757580557315,7.37,223.18,223.09,3.7533749]
[1757580557508,7.37,223.18,223.06,3.7533749]
[1757580558807,7.37,223.18,223.06,11.2533749]
[1757580559118,7.37,223.18,223.07,3.7533749]
[1757580559618,3.48780713,223.17,223.06,11.2533749]
[1757580559819,2.58315749,223.19,223.06,11.2533749]
[1757580560019,7.37,223.17,223.07,3.7533749]
[1757580560214,7.37,223.17,223.1,7.5]
[1757580560419,7.37,223.21,223.14,7.5]
[1757580560619,7.37,223.24,223.14,33.1333749]
[1757580560918,2.58315749,223.21,223.12,3.7533749]
[1757580561117,7.37,223.2,223.12,3.7533749]
[1757580561621,7.37,223.2,223.11,3.7533749]
[1757580561817,7.37,223.18,223.1,7.5]
[1757580562015,2.58315749,223.17,223.08,3.7533749]
[1757580562321,10.86243556,223.16,223.08,3.7533749]
[1757580562517,7.37,223.16,223.08,3.7533749]
[1757580568220,7.06,223.14,223.06,3.7533749]
[1757580568420,7.05781934,223.13,223.03,10.8633749]
[1757580568623,14.11781934,223.12,223.03,10.8633749]
[1757580568824,7.06,223.12,223.03,10.8633749]
[1757580570121,7.06,223.12,223.03,7.11]
[1757580573021,9.64315749,223.12,223.0,304.9333749]
[1757580573325,7.09131901,223.1,223.0,301.18]
[1757580576226,7.09131901,223.1,223.03,7.11]
[1757580576925,0.03131901,223.1,223.0,307.51653239]
[1757580577126,0.03131901,223.1,223.05,7.11]
[1757580577331,7.09131901,223.1,223.07,7.11]
[1757580579733,0.03131901,223.1,223.07,7.11]
[1757580579933,0.03131901,223.1,223.06,109.04]
[1757580580431,0.03131901,223.1,223.07,7.11]
[1757580580628,0.03131901,223.1,223.02,3.7533749]
[1757580580833,0.03131901,223.1,223.05,109.04]
[1757580581231,0.03131901,223.1,223.06,7.11]
[1757580581432,0.03131901,223.1,223.05,109.04]
[1757580582230,0.03131901,223.1,223.06,7.11]
[1757580582626,0.03131901,223.1,223.05,109.04]
[1757580582828,7.06,223.18,223.06,7.11]
[1757580583035,7.06,223.18,223.06,7.14121026]
[1757580584540,257.06,223.2,223.09,7.11]
[1757580584738,257.06,223.2,223.1,109.04]
[1757580584940,257.06,223.2,223.11,7.11]
[1757580585135,257.06,223.2,223.13,0.02977499]
[1757580604464,257.06,223.2,223.13,7.14977499]
[1757580605057,250.0,223.2,223.15,7.12]
[1757580605262,250.0,223.2,223.14,1.65373713]
[1757580605463,250.0,223.2,223.15,7.12]
[1757580605663,250.0,223.2,223.17,1.65373713]
[1757580605868,250.03251106,223.2,223.18,7.12]
[1757580606067,250.03251106,223.2,223.17,1.65373713]
[1757580606468,250.03251106,223.2,223.18,7.12]
[1757580606765,250.03251106,223.2,223.19,7.12]
[1757580606967,250.03251106,223.2,223.14,7.12]
[1757580607158,7.18,223.19,223.14,7.12]
[1757580607362,250.03251106,223.2,223.14,8.77373713]
[1757580607766,257.21251106,223.2,223.14,1.65373713]
[1757580608668,257.21251106,223.2,223.14,8.77373713]
[1757580614774,257.21251106,223.2,223.14,7.12]
[1757580615071,257.21251106,223.2,223.14,1.65373713]
[1757580620475,257.21251106,223.2,223.13,0.02977499]
[1757580620678,257.21251106,223.2,223.14,1.65373713]
[1757580625476,257.21251106,223.2,223.13,0.02977499]
[1757580625780,7.18,223.18,223.13,0.02977499]
[1757580625978,3.49626308,223.17,223.13,0.02977499]
[1757580626179,7.18,223.19,223.13,0.02977499]
[1757580626380,7.18,223.17,223.13,0.02977499]
[1757580631883,7.05,223.15,223.13,0.02977499]
[1757580633774,1.65373713,223.17,223.13,0.02977499]
[1757580633982,14.10945012,223.16,223.13,0.02977499]
[1757580634182,7.05,223.14,223.13,0.02977499]
[1757580637386,7.05,223.16,223.05,8.81373713]
[1757580637584,3.50620523,223.15,223.05,8.81373713]
[1757580637786,110.67373713,223.17,223.05,8.81373713]
[1757580637988,7.05590267,223.16,223.05,8.81373713]
[1757580638182,3.50625957,223.15,223.05,8.81373713]
[1757580638382,7.05,223.14,223.05,7.16]
[1757580641885,8.70373713,223.14,223.04,0.40442]
[1757580642192,7.05,223.12,223.04,0.40442]
[1757580642386,7.05,223.1,223.04,0.40442]
[1757580645191,0.02836322,223.09,223.04,7.56442]
[1757580645383,7.05,223.08,223.04,7.56442]
[1757580645584,0.02836322,223.09,223.04,7.56442]
[1757580646492,0.02836322,223.09,223.04,0.40442]
[1757580646493,7.05,223.08,223.04,0.40442]
[1757580646790,8.70373713,223.08,223.04,0.40442]
[1757580647894,3.49734553,223.07,223.04,0.40442]
[1757580648095,8.70373713,223.08,223.04,0.40442]
[1757580648296,7.05,223.08,223.04,0.40442]
[1757580650096,0.02836322,223.09,223.04,0.40442]
[1757580650292,7.05,223.08,223.04,0.40442]
[1757580661597,3.49494064,223.07,222.98,7.16]
[1757580661900,14.17654433,223.06,222.9,7.56]
[1757580662100,2.58732149,223.07,222.9,7.56]
[1757580662101,7.15,223.04,222.9,7.56]
[1757580662399,7.15,223.04,222.94,7.56]
[1757580662901,0.02945159,223.01,222.94,7.56]
[1757580665000,0.02945159,223.01,222.95,0.43339]
[1757580665397,0.02945159,223.01,222.96,7.56]
[1757580666000,0.02945159,223.01,222.95,0.43339]
[1757580666398,0.02945159,223.01,222.96,7.56]
[1757580666697,0.02945159,223.01,222.95,0.43339]
[1757580666903,0.02945159,223.01,222.96,7.56]
[1757580667598,0.02945159,223.01,222.95,0.43339]
[1757580667805,0.02945159,223.01,222.96,7.56]
[1757580668104,0.02945159,223.01,222.95,0.43339]
[1757580669103,0.02945159,223.01,222.96,7.56]
[1757580669806,0.02945159,223.01,222.95,0.43339]
[1757580670305,0.02945159,223.01,222.96,7.56]
[1757580670706,0.02945159,223.01,222.95,0.43339]
[1757580670901,0.02945159,223.01,222.96,7.56]
[1757580672800,0.02945159,223.01,222.95,0.43339]
[1757580673001,0.02945159,223.01,222.96,7.56]
[1757580673204,0.02945159,223.01,222.95,0.43339]
[1757580674104,0.02945159,223.01,222.96,7.56]
[1757580674608,0.02945159,223.01,222.95,0.43339]
[1757580675202,0.02945159,223.01,222.96,7.56]
[1757580675506,0.02945159,223.01,222.95,0.43339]
[1757580675802,7.17945159,223.01,222.95,7.99339]
[1757580679711,7.17945159,223.01,222.95,0.43339]
[1757580682210,0.02945159,223.01,222.95,7.99339]
[1757580694122,3.50864742,223.0,222.95,7.99339]
[1757580694424,0.02945159,223.01,222.95,7.99339]
[1757580694624,3.5088216,223.0,222.95,7.99339]
[1757580694823,0.02945159,223.01,222.95,7.99339]
[1757580695023,3.5088216,223.0,222.95,7.99339]
[1757580695223,0.02945159,223.01,222.95,7.99339]
[1757580695419,3.50909912,223.0,222.95,7.99339]
[1757580695625,0.02945159,223.01,222.95,7.99339]
[1757580695825,3.50909912,223.0,222.95,7.99339]
[1757580696024,0.02945159,223.01,222.95,7.99339]
[1757580696222,3.50909911,223.0,222.95,7.99339]
[1757580696522,0.02945159,223.01,222.95,7.99339]
[1757580696722,3.50940493,223.0,222.95,7.99339]
[1757580696922,0.02945159,223.01,222.95,7.99339]
[1757580697125,3.50829646,223.0,222.95,7.99339]
[1757580697324,0.02945159,223.01,222.95,7.99339]
[1757580697625,3.50863121,223.0,222.95,7.99339]
[1757580697825,0.02945159,223.01,222.95,7.99339]
[1757580698027,3.50863121,223.0,222.95,7.99339]
[1757580698226,0.02945159,223.01,222.95,7.99339]
[1757580698423,3.50881457,223.0,222.95,7.99339]
[1757580698724,0.02945159,223.01,222.95,7.99339]
[1757580698925,3.50880771,223.0,222.95,7.99339]
[1757580699225,0.02945159,223.01,222.97,7.14]
[1757580699421,3.5089943,223.0,222.96,0.03392979]
[1757580699622,0.02945159,223.01,222.96,0.03392979]
[1757580699819,3.5089943,223.0,222.97,7.14]
[1757580700021,0.02945159,223.01,222.96,0.03392979]
[1757580700219,3.50899713,223.0,222.96,0.03392979]
[1757580700429,0.02945159,223.01,222.97,7.14]
[1757580700624,3.50948908,223.0,222.96,0.03392979]
[1757580700829,0.02945159,223.01,222.96,0.03392979]
[1757580701130,3.51004816,223.0,222.97,7.14]
[1757580701330,0.02945159,223.01,222.96,0.03392979]
[1757580701529,3.51055425,223.0,222.97,7.14]
[1757580701828,7.36945159,223.01,222.96,0.03392979]
[1757580702024,3.51055425,223.0,222.96,0.03392979]
[1757580702228,7.36945159,223.01,222.96,0.03392979]
[1757580702425,3.51080509,223.0,222.97,7.14]
[1757580702624,3.51080509,223.0,222.96,0.03392979]
[1757580702625,7.36945159,223.01,222.96,0.03392979]
[1757580702828,3.51080509,223.0,222.97,7.14]
[1757580703129,7.36945159,223.01,222.97,7.14]
[1757580703325,3.51107879,223.0,222.96,0.03392979]
[1757580703630,7.36945159,223.01,222.97,7.14]
[1757580703826,3.51107879,223.0,222.96,0.03392979]
[1757580704028,7.36945159,223.01,222.96,0.03392979]
[1757580704224,3.51113071,223.0,222.96,0.03392979]
[1757580704426,7.36945159,223.01,222.96,0.03392979]
[1757580704627,3.51144298,223.0,222.97,7.14]
[1757580704828,7.36945159,223.01,222.96,0.03392979]
[1757580705124,3.51144298,223.0,222.97,7.14]
[1757580705329,7.36945159,223.01,222.97,7.14]
[1757580705529,3.51148905,223.0,222.97,7.14]
[1757580705726,7.36945159,223.01,222.96,0.03392979]
[1757580705930,3.51148941,223.0,222.96,0.03392979]
[1757580706231,7.36945159,223.01,222.96,0.03392979]
[1757580706433,7.07205198,223.0,222.97,7.14]
[1757580706633,7.36945159,223.01,222.96,0.03392979]
[1757580706834,7.07264172,223.0,222.96,0.03392979]
[1757580707129,7.36945159,223.01,222.97,7.14]
[1757580707331,7.07301608,223.0,222.97,7.14]
[1757580707627,7.36945159,223.01,222.96,0.03392979]
[1757580707828,7.07301608,223.0,222.96,0.03392979]
[1757580708029,7.36945159,223.01,222.96,0.03392979]
[1757580708327,7.07280753,223.0,222.96,0.03392979]
[1757580708528,0.02945159,223.01,222.97,7.14]
[1757580708830,7.07280992,223.0,222.96,0.03392979]
[1757580709031,0.02945159,223.01,222.97,7.14]
[1757580709233,7.07288755,223.0,222.96,0.03392979]
[1757580709434,0.02945159,223.01,222.96,0.03392979]
[1757580709732,7.07280481,223.0,222.97,7.14]
[1757580709933,0.02945159,223.01,222.97,7.14]
[1757580710130,7.0728072,223.0,222.97,7.14]
[1757580710329,0.02945159,223.01,222.96,0.03392979]
[1757580710529,7.07280561,223.0,222.96,0.03392979]
[1757580710829,0.02945159,223.01,222.96,0.03392979]
[1757580711030,7.07280561,223.0,222.97,7.14]
[1757580711331,7.36945159,223.01,222.97,7.14]
[1757580711633,7.07280324,223.0,222.97,7.14]
[1757580711829,7.36945159,223.01,222.96,0.03392979]
[1757580712033,7.07364509,223.0,222.97,7.14]
[1757580712229,7.36945159,223.01,222.96,0.03392979]
[1757580712433,3.51235045,223.0,222.96,0.03392979]
[1757580712637,7.36945159,223.01,222.97,7.14]
[1757580712934,3.51236339,223.0,222.96,0.03392979]
[1757580713134,7.36945159,223.01,222.96,0.03392979]
[1757580713330,3.51234214,223.0,222.97,7.14]
[1757580713527,7.36945159,223.01,222.96,0.03392979]
[1757580713728,3.51234214,223.0,222.97,7.14]
[1757580713936,7.36945159,223.01,222.96,0.03392979]
[1757580714234,3.51234095,223.0,222.96,0.03392979]
[1757580714435,7.36945159,223.01,222.97,7.14]
[1757580714636,3.51227152,223.0,222.97,7.14]
[1757580714836,7.36945159,223.01,222.96,0.03392979]
[1757580715032,3.51227152,223.0,222.96,0.03392979]
[1757580715238,7.36945159,223.01,222.96,0.03392979]
[1757580715437,3.51222922,223.0,222.96,0.03392979]
[1757580715639,7.36945159,223.01,222.96,0.03392979]
[1757580715839,10.85222929,223.0,222.97,7.14]
[1757580716039,7.34,223.0,222.97,7.14]
[1757580716538,7.34,223.0,222.96,0.03392979]
[1757580716930,0.02945159,223.01,222.97,7.14]
[1757580717136,3.51475166,223.0,222.97,7.48]
[1757580717340,7.49945159,223.01,222.97,7.48]
[1757580717639,7.49945159,223.01,222.96,0.03392979]
[1757580718041,0.02945159,223.01,222.97,7.48]
[1757580718242,7.47,223.0,222.97,7.48]
[1757580718938,7.47,223.0,222.96,0.03392979]
[1757580719140,7.47,223.0,222.97,7.48]
[1757580720541,7.47,223.0,222.96,0.03392979]
[1757580720934,7.47,223.0,222.97,7.48]
[1757580721140,7.47,223.0,222.96,0.03392979]
[1757580721339,7.47,223.0,222.97,7.48]
[1757580721536,0.02945159,223.01,222.96,0.03392979]
[1757580721746,7.47,222.99,222.96,0.03392979]
[1757580721948,0.02945159,223.01,222.96,0.03392979]
[1757580722238,3.51344694,223.0,222.96,0.03392979]
[1757580722443,0.02945159,223.01,222.96,0.03392979]
[1757580722644,3.51370196,223.0,222.96,0.03392979]
[1757580722844,0.02945159,223.01,222.96,0.03392979]
[1757580723144,7.47,222.99,222.96,0.03392979]
[1757580723344,0.02945159,223.01,222.96,0.03392979]
[1757580723644,3.514127,223.0,222.96,0.03392979]
[1757580723848,0.02945159,223.01,222.96,7.51392979]
[1757580724142,7.47,222.99,222.96,7.51392979]
[1757580724343,7.47,222.99,222.97,7.48]
[1757580728847,0.02945159,223.01,222.96,0.03392979]
[1757580729048,3.51702316,223.0,222.97,7.48]
[1757580729348,7.47,223.0,222.97,7.48]
[1757580730851,3.5170585,222.99,222.97,7.48]
[1757580731050,7.47,222.99,222.97,7.48]
[1757580735057,0.02945159,223.01,222.96,0.03392979]
[1757580735257,7.47,222.99,222.96,0.03392979]
[1757580735556,7.47,223.0,222.96,7.51392979]
[1757580736158,0.02945159,223.01,222.96,7.51392979]
[1757580736358,7.47,222.99,222.96,7.51392979]
[1757580738062,7.47,222.99,222.97,7.48]
[1757580739264,7.49945159,223.01,222.96,0.03392979]
[1757580739456,0.02945159,223.01,222.97,9.1362104]
[1757580739656,0.02945159,223.01,222.96,0.03392979]
[1757580739657,7.47,223.07,223.01,7.48]
[1757580739862,7.08743136,223.06,223.0,1.6562104]
[1757580740059,7.47,223.07,223.01,7.48]
[1757580740256,7.47,223.07,223.01,5.01416452]
[1757580740463,7.47,223.07,223.01,7.48]
[1757580740664,7.47,223.12,223.01,7.48]
[1757580740863,7.47,223.1,223.03,7.48]
[1757580741064,3.51268382,223.09,223.03,7.48]
[1757580741265,7.47,223.09,223.03,7.48]
[1757580746370,7.47,223.09,223.03,9.1362104]
[1757580746667,7.47,223.15,223.03,9.1362104]
[1757580746868,3.50442415,223.14,223.03,9.1362104]
[1757580747062,0.78034779,223.18,223.03,9.1362104]
[1757580747063,3.50442415,223.13,223.03,9.1362104]
[1757580747259,6.9,223.13,223.07,7.53]
[1757580753277,6.9,223.13,223.06,0.0325574]
[1757580753278,8.5562104,223.13,223.06,0.0325574]
[1757580756477,8.5562104,223.13,223.07,7.53]
[1757580756478,6.9,223.13,223.07,7.53]
[1757580757977,8.5562104,223.13,223.07,7.53]